fUSD/lending_fUSD_20260624
["ID","MTS","AMOUNT","RATE_DAILY","PERIOD"]
[426290721,1782249037000,-701.64950637,0.00011545,2]
[426290719,1782249037000,-160.0,0.00011192,2]
[426290717,1782249037000,-166.66,0.0001109,2]
[426290718,1782249037000,-216.39158367,0.00011192,2]
[426290714,1782249037000,-222.09810535,0.00011072,2]
[426290728,1782249037000,-319.85584766,0.00011599,2]
[426290713,1782249037000,-277.90189465,0.00011072,2]
[426290716,1782249037000,-396.78259443,0.00011072,2]
[426290710,1782249037000,-151.2607652,0.00010973,2]
[426290712,1782249037000,-500.0,0.00011072,2]
[426290711,1782249037000,-500.0,0.00011072,2]
[426290709,1782249037000,-764.79791455,0.0001,2]
[426290715,1782249037000,-500.0,0.00011072,2]
[426290724,1782249037000,-157.76540591,0.00011599,2]
[426290735,1782249037000,-1629.8,0.00011939,2]
[426290727,1782249037000,-151.34311238,0.00011599,2]
[426290725,1782249037000,-500.0,0.00011599,2]
[426290740,1782249037000,-1500000.0,0.00012245,2]
[426290739,1782249037000,-5703.0,0.00012245,2]
[426290741,1782249037000,-166.66,0.00012257,2]
[426290742,1782249037000,-217.68536207,0.00012283,2]
[426290743,1782249037000,-150.21,0.00012329,2]
[426290736,1782249037000,-166.66,0.00012023,2]
[426290737,1782249037000,-170.55,0.00012081,2]
[426290733,1782249037000,-200.0,0.00011683,2]
[426290732,1782249037000,-2953.57,0.00011673,2]
[426290730,1782249037000,-473.33463613,0.00011599,2]
[426290726,1782249037000,-500.0,0.00011599,2]
[426290729,1782249037000,-500.0,0.00011599,2]
[426290731,1782249037000,-1902.69,0.000116,2]
[426290734,1782249037000,-166.66,0.0001179,2]
[426290723,1782249037000,-170.83,0.00011573,2]
[426290785,1782249038000,-200.0,0.00013699,2]
[426290787,1782249038000,-382.12,0.00013699,2]
[426290786,1782249038000,-9999.99,0.00013699,2]
[426290775,1782249038000,-500.0,0.00013698,2]
[426290781,1782249038000,-500.0,0.00013698,2]
[426290778,1782249038000,-500.0,0.00013698,2]
[426290784,1782249038000,-500.0,0.00013698,2]
[426290777,1782249038000,-500.0,0.00013698,2]
[426290776,1782249038000,-500.0,0.00013698,2]
[426290780,1782249038000,-500.0,0.00013698,2]
[426290788,1782249038000,-9999.99,0.00013699,2]
[426290783,1782249038000,-500.0,0.00013698,2]
[426290789,1782249038000,-150.0,0.00013752,2]
[426290798,1782249038000,-150.0,0.00013987,2]
[426290793,1782249038000,-150.0,0.00013862,2]
[426290792,1782249038000,-150.0,0.0001384,2]
[426290791,1782249038000,-150.0,0.00013787,2]
[426290794,1782249038000,-150.0,0.00013862,2]
[426290796,1782249038000,-150.0,0.00013887,2]
[426290795,1782249038000,-150.0,0.00013862,2]
[426290774,1782249038000,-500.0,0.00013698,2]
[426290797,1782249038000,-150.0,0.00013928,2]
[426290799,1782249038000,-199.5,0.00013999,2]
[426290801,1782249038000,-150.0,0.00014017,2]
[426290800,1782249038000,-250.0,0.00014,2]
[426290802,1782249038000,-150.0,0.00014087,2]
[426290807,1782249038000,-150.0,0.00014237,2]
[426290790,1782249038000,-150.0,0.00013787,2]
[426290782,1782249038000,-500.0,0.00013698,2]
[426290770,1782249038000,-500.0,0.00013698,2]
[426290772,1782249038000,-689.80999983,0.00013698,2]
[426290745,1782249038000,-233.125,0.00012329,2]
[426290744,1782249038000,-3091.527,0.00012329,2]
[426290747,1782249038000,-151.26076519,0.00012349,2]
[426290748,1782249038000,-185.39,0.00012449,2]
[426290746,1782249038000,-1000.0,0.00012329,2]
[426290749,1782249038000,-509.08,0.00013,2]
[426290751,1782249038000,-151.0,0.00013425,2]
[426290750,1782249038000,-170.83,0.0001302,2]
[426290752,1782249038000,-150.0,0.00013488,2]
[426290754,1782249038000,-150.0,0.00013488,2]
[426290755,1782249038000,-152.29892501,0.00013488,2]
[426290753,1782249038000,-150.0,0.00013488,2]
[426290756,1782249038000,-150.0,0.00013488,2]
[426290779,1782249038000,-500.0,0.00013698,2]
[426290757,1782249038000,-153.25479407,0.00013488,2]
[426290760,1782249038000,-150.0,0.00013488,2]
[426290758,1782249038000,-150.0,0.00013488,2]
[426290761,1782249038000,-150.0,0.00013576,2]
[426290769,1782249038000,-500.0,0.00013698,2]
[426290765,1782249038000,-500.0,0.00013698,2]
[426290763,1782249038000,-150.0,0.00013664,2]
[426290762,1782249038000,-150.0,0.00013588,2]
[426290804,1782249038000,-150.0,0.00014105,2]
[426290764,1782249038000,-150.0,0.00013687,2]
[426290768,1782249038000,-500.0,0.00013698,2]
[426290771,1782249038000,-500.0,0.00013698,2]
[426290766,1782249038000,-500.0,0.00013698,2]
[426290773,1782249038000,-500.0,0.00013698,2]
[426290759,1782249038000,-150.0,0.00013488,2]
[426290806,1782249038000,-150.0,0.00014193,2]
[426290767,1782249038000,-500.0,0.00013698,2]
[426290803,1782249038000,-150.0,0.00014087,2]
[426290841,1782249038000,-25000.0,0.00014891,3]
[426290837,1782249038000,-2625.83328703,0.000148,2]
[426290840,1782249038000,-150.0,0.00014886,2]
[426290842,1782249038000,-150.0,0.00014898,2]
[426290844,1782249038000,-985.11038886,0.000149,2]
[426290846,1782249038000,-150.90789025,0.000149,2]
[426290845,1782249038000,-25000.0,0.000149,3]
[426290847,1782249038000,-1202.2416445,0.000149,2]
[426290849,1782249038000,-689.80999983,0.00014965,2]
[426290848,1782249038000,-292.05203898,0.00014908,2]
[426290852,1782249038000,-211.62669213,0.00014986,2]
[426290851,1782249038000,-155.52469188,0.00014986,2]
[426290853,1782249038000,-175.17638505,0.00014986,2]
[426290843,1782249038000,-10973.62170936,0.000149,2]
[426290850,1782249038000,-157.16169221,0.00014986,2]
[426290855,1782249038000,-175.24789496,0.00014986,2]
[426290858,1782249038000,-121189.46279617,0.00014989,2]
[426290854,1782249038000,-232.37690292,0.00014986,2]
[426290857,1782249038000,-500.0,0.00014988,2]
[426290859,1782249038000,-1000.0,0.00014989,2]
[426290860,1782249038000,-500.0,0.00014999,2]
[426290861,1782249038000,-500.0,0.00014999,2]
[426290862,1782249038000,-500.0,0.00014999,2]
[426290863,1782249038000,-500.0,0.00014999,2]
[426290864,1782249038000,-500.0,0.00014999,2]
[426290865,1782249038000,-500.0,0.00014999,2]
[426290867,1782249038000,-465.5239493,0.00014999,2]
[426290805,1782249038000,-150.0,0.00014187,2]
[426290856,1782249038000,-196.60476605,0.00014986,2]
[426290835,1782249038000,-150.0,0.00014739,2]
[426290866,1782249038000,-500.0,0.00014999,2]
[426290838,1782249038000,-150.0,0.0001481,2]
[426290836,1782249038000,-150.0,0.00014786,2]
[426290808,1782249038000,-150.0,0.00014237,2]
[426290810,1782249038000,-150.0,0.00014281,2]
[426290812,1782249038000,-150.0,0.00014369,2]
[426290818,1782249038000,-1277.0,0.00014425,2]
[426290814,1782249038000,-150.0,0.00014387,2]
[426290811,1782249038000,-150.0,0.00014287,2]
[426290815,1782249038000,-150.0,0.00014425,2]
[426290817,1782249038000,-383.0,0.00014425,2]
[426290816,1782249038000,-150.0,0.00014425,2]
[426290813,1782249038000,-150.0,0.00014387,2]
[426290819,1782249038000,-1361.0,0.00014425,2]
[426290820,1782249038000,-1229.0,0.00014425,2]
[426290822,1782249038000,-216.0,0.00014425,2]
[426290809,1782249038000,-150.0,0.00014237,2]
[426290823,1782249038000,-150.0,0.00014457,2]
[426290821,1782249038000,-6083.0,0.00014425,2]
[426290839,1782249038000,-25000.0,0.00014882,3]
[426290832,1782249038000,-150.0,0.00014687,2]
[426290834,1782249038000,-150.0,0.00014722,2]
[426290830,1782249038000,-150.0,0.00014612,2]
[426290831,1782249038000,-150.0,0.00014634,2]
[426290833,1782249038000,-150.0,0.00014687,2]
[426290829,1782249038000,-150.0,0.00014612,2]
[426290827,1782249038000,-150.0,0.00014587,2]
[426290826,1782249038000,-150.0,0.00014546,2]
[426290825,1782249038000,-150.0,0.00014487,2]
[426290824,1782249038000,-170.83,0.00014467,2]
[426290828,1782249038000,-150.0,0.00014612,2]
[426290908,1782249039000,-837.99500271,0.00016438,2]
[426290909,1782249039000,-837.99500271,0.00016438,2]
[426290910,1782249039000,-837.99500271,0.00016438,2]
[426290907,1782249039000,-837.99500271,0.00016438,2]
[426290906,1782249039000,-837.99500271,0.00016438,2]
[426290901,1782249039000,-9999.99,0.00016116,2]
[426290900,1782249039000,-184.06026109,0.000161,2]
[426290902,1782249039000,-689.80999983,0.00016232,2]
[426290899,1782249039000,-200.0,0.00016011,3]
[426290904,1782249039000,-200.0,0.0001634,2]
[426290903,1782249039000,-1555.5,0.00016304,2]
[426290905,1782249039000,-974.8,0.00016438,2]
[426290911,1782249039000,-837.99500271,0.00016438,2]
[426290915,1782249039000,-837.99500271,0.00016438,2]
[426290923,1782249039000,-837.99500271,0.00016438,2]
[426290918,1782249039000,-837.99500271,0.00016438,2]
[426290920,1782249039000,-837.99500271,0.00016438,2]
[426290916,1782249039000,-837.99500271,0.00016438,2]
[426290922,1782249039000,-837.99500271,0.00016438,2]
[426290914,1782249039000,-837.99500271,0.00016438,2]
[426290913,1782249039000,-837.99500271,0.00016438,2]
[426290926,1782249039000,-837.99500271,0.00016438,2]
[426290928,1782249039000,-837.99500271,0.00016438,2]
[426290930,1782249039000,-837.99500271,0.00016438,2]
[426290931,1782249039000,-837.99500271,0.00016438,2]
[426290898,1782249039000,-500.0,0.00016011,3]
[426290936,1782249039000,-837.99500271,0.00016438,2]
[426290912,1782249039000,-837.99500271,0.00016438,2]
[426290897,1782249039000,-500.0,0.00016011,3]
[426290880,1782249039000,-500.0,0.00015,3]
[426290895,1782249039000,-161.80998669,0.00016,2]
[426290933,1782249039000,-837.99500271,0.00016438,2]
[426290868,1782249039000,-500.0,0.00014999,2]
[426290869,1782249039000,-500.0,0.00014999,2]
[426290870,1782249039000,-11740255.01930515,0.00015,2]
[426290871,1782249039000,-8839361.85749169,0.00015,2]
[426290872,1782249039000,-300.0,0.00015,3]
[426290873,1782249039000,-500.0,0.00015,2]
[426290874,1782249039000,-353.48340522,0.00015,2]
[426290875,1782249039000,-500.0,0.00015,2]
[426290877,1782249039000,-500.0,0.00015,2]
[426290879,1782249039000,-500.0,0.00015,2]
[426290883,1782249039000,-150.0,0.00015068,2]
[426290881,1782249039000,-413.9336209,0.00015,3]
[426290876,1782249039000,-500.0,0.00015,2]
[426290878,1782249039000,-500.0,0.00015,2]
[426290882,1782249039000,-1538.77,0.00015,2]
[426290884,1782249039000,-900.0,0.00015068,2]
[426290886,1782249039000,-500.0,0.000151,3]
[426290885,1782249039000,-250.0,0.00015068,2]
[426290888,1782249039000,-1527.26,0.000157,2]
[426290889,1782249039000,-1500.0,0.00015756,2]
[426290890,1782249039000,-500.0,0.00015831,2]
[426290887,1782249039000,-500.0,0.000151,3]
[426290893,1782249039000,-170.83,0.00015913,2]
[426290891,1782249039000,-2000.0,0.00015831,2]
[426290892,1782249039000,-500.0,0.00015831,2]
[426290894,1782249039000,-300.0,0.00016,2]
[426290896,1782249039000,-184.06026109,0.00016,2]
[426290935,1782249039000,-837.99500271,0.00016438,2]
[426290940,1782249039000,-837.99500271,0.00016438,2]
[426290937,1782249039000,-837.99500271,0.00016438,2]
[426290975,1782249039000,-837.99500271,0.00016438,2]
[426290977,1782249039000,-837.99500271,0.00016438,2]
[426290974,1782249039000,-837.99500271,0.00016438,2]
[426290979,1782249039000,-7018.99999783,0.00016438,2]
[426290973,1782249039000,-837.99500271,0.00016438,2]
[426290976,1782249039000,-837.99500271,0.00016438,2]
[426290970,1782249039000,-837.99500271,0.00016438,2]
[426290978,1782249039000,-837.99500271,0.00016438,2]
[426290980,1782249039000,-7018.99999783,0.00016438,2]
[426290982,1782249039000,-7018.99999783,0.00016438,2]
[426290981,1782249039000,-7018.99999783,0.00016438,2]
[426290985,1782249039000,-7018.99999783,0.00016438,2]
[426290983,1782249039000,-7018.99999783,0.00016438,2]
[426290972,1782249039000,-837.99500271,0.00016438,2]
[426290987,1782249039000,-7018.99999783,0.00016438,2]
[426290984,1782249039000,-7018.99999783,0.00016438,2]
[426290989,1782249039000,-7018.99999783,0.00016438,2]
[426290988,1782249039000,-7018.99999783,0.00016438,2]
[426290990,1782249039000,-7018.99999783,0.00016438,2]
[426290991,1782249039000,-7018.99999783,0.00016438,2]
[426290992,1782249039000,-7018.99999783,0.00016438,2]
[426290993,1782249039000,-7018.99999783,0.00016438,2]
[426290999,1782249039000,-7018.99999783,0.00016438,2]
[426290996,1782249039000,-7018.99999783,0.00016438,2]
[426290994,1782249039000,-7018.99999783,0.00016438,2]
[426290938,1782249039000,-837.99500271,0.00016438,2]
[426290995,1782249039000,-7018.99999783,0.00016438,2]
[426290998,1782249039000,-7018.99999783,0.00016438,2]
[426290986,1782249039000,-7018.99999783,0.00016438,2]
[426290971,1782249039000,-837.99500271,0.00016438,2]
[426290997,1782249039000,-7018.99999783,0.00016438,2]
[426290969,1782249039000,-837.99500271,0.00016438,2]
[426290934,1782249039000,-837.99500271,0.00016438,2]
[426290939,1782249039000,-837.99500271,0.00016438,2]
[426290942,1782249039000,-837.99500271,0.00016438,2]
[426290943,1782249039000,-837.99500271,0.00016438,2]
[426290941,1782249039000,-837.99500271,0.00016438,2]
[426290955,1782249039000,-837.99500271,0.00016438,2]
[426290950,1782249039000,-837.99500271,0.00016438,2]
[426290954,1782249039000,-837.99500271,0.00016438,2]
[426290968,1782249039000,-837.99500271,0.00016438,2]
[426290949,1782249039000,-837.99500271,0.00016438,2]
[426290946,1782249039000,-837.99500271,0.00016438,2]
[426290944,1782249039000,-837.99500271,0.00016438,2]
[426290953,1782249039000,-837.99500271,0.00016438,2]
[426290951,1782249039000,-837.99500271,0.00016438,2]
[426290952,1782249039000,-837.99500271,0.00016438,2]
[426290948,1782249039000,-837.99500271,0.00016438,2]
[426290960,1782249039000,-837.99500271,0.00016438,2]
[426290965,1782249039000,-837.99500271,0.00016438,2]
[426290964,1782249039000,-837.99500271,0.00016438,2]
[426290967,1782249039000,-837.99500271,0.00016438,2]
[426290961,1782249039000,-837.99500271,0.00016438,2]
[426290959,1782249039000,-837.99500271,0.00016438,2]
[426290963,1782249039000,-837.99500271,0.00016438,2]
[426290958,1782249039000,-837.99500271,0.00016438,2]
[426290957,1782249039000,-837.99500271,0.00016438,2]
[426290956,1782249039000,-837.99500271,0.00016438,2]
[426290962,1782249039000,-837.99500271,0.00016438,2]
[426290966,1782249039000,-837.99500271,0.00016438,2]
[426291036,1782249040000,-1793.86023933,0.000177,2]
[426291037,1782249040000,-10203.95536531,0.000178,2]
[426291034,1782249040000,-10203.95536531,0.000177,2]
[426291040,1782249040000,-1734.62772924,0.00017948,2]
[426291030,1782249040000,-689.80999983,0.00017498,2]
[426291038,1782249040000,-1793.86023933,0.000178,2]
[426291039,1782249040000,-250.0,0.00017808,6]
[426291032,1782249040000,-350.94877708,0.000175,2]
[426291031,1782249040000,-10203.95536531,0.000175,2]
[426291033,1782249040000,-1793.86023933,0.000175,2]
[426291035,1782249040000,-350.94877708,0.000177,2]
[426291053,1782249040000,-1793.86023933,0.00018,2]
[426291041,1782249040000,-171.03081286,0.00018,2]
[426291044,1782249040000,-170.3844487,0.00018,2]
[426291043,1782249040000,-3676.89515425,0.00018,2]
[426291045,1782249040000,-205.98672192,0.00018,2]
[426291046,1782249040000,-169.89889698,0.00018,2]
[426291047,1782249040000,-169.87728653,0.00018,2]
[426291048,1782249040000,-10203.95536531,0.00018,2]
[426291050,1782249040000,-174.52983839,0.00018,2]
[426291049,1782249040000,-489.64372977,0.00018,2]
[426291052,1782249040000,-169.85301842,0.00018,2]
[426291051,1782249040000,-215.71060911,0.00018,2]
[426291029,1782249040000,-216.0,0.00017425,2]
[426291042,1782249040000,-1287.46718526,0.00018,2]
[426291028,1782249040000,-6083.0,0.00017425,2]
[426291011,1782249040000,-10203.95536531,0.00017,2]
[426291025,1782249040000,-1277.0,0.00017425,2]
[426291054,1782249040000,-350.0,0.00018,2]
[426291002,1782249040000,-7018.99999783,0.00016438,2]
[426291001,1782249040000,-7018.99999783,0.00016438,2]
[426291003,1782249040000,-7018.99999783,0.00016438,2]
[426291000,1782249040000,-7018.99999783,0.00016438,2]
[426291005,1782249040000,-900.0,0.00016438,2]
[426291004,1782249040000,-7018.99999783,0.00016438,2]
[426291010,1782249040000,-1613.0535,0.00016852,2]
[426291013,1782249040000,-1793.86023933,0.00017,2]
[426291007,1782249040000,-1127.0,0.00016471,2]
[426291006,1782249040000,-250.0,0.00016438,4]
[426291014,1782249040000,-10203.95536531,0.000171,2]
[426291027,1782249040000,-1229.0,0.00017425,2]
[426291008,1782249040000,-172.1,0.00016712,2]
[426291009,1782249040000,-150.21,0.00016767,2]
[426291017,1782249040000,-10203.95536531,0.000173,2]
[426291015,1782249040000,-350.94877708,0.000171,2]
[426291016,1782249040000,-1793.86023933,0.000171,2]
[426291018,1782249040000,-350.94877708,0.000173,2]
[426291022,1782249040000,-170.83,0.0001736,2]
[426291019,1782249040000,-1793.86023933,0.000173,2]
[426291021,1782249040000,-1127.0,0.00017338,2]
[426291020,1782249040000,-1538.77,0.000173,2]
[426291026,1782249040000,-1361.0,0.00017425,2]
[426291024,1782249040000,-383.0,0.00017425,2]
[426291023,1782249040000,-1672.7364795,0.000174,2]
[426291012,1782249040000,-350.94877708,0.00017,2]
[426291055,1782249040000,-170.55,0.00018121,2]
[426291061,1782249040000,-169.89889698,0.000182,2]
[426291062,1782249040000,-169.87728653,0.000182,2]
[426291087,1782249040000,-489.64372977,0.000185,2]
[426291089,1782249040000,-10203.95536531,0.000186,2]
[426291090,1782249040000,-1793.86023933,0.000186,2]
[426291091,1782249040000,-504.69179289,0.00018634,2]
[426291094,1782249040000,-1287.46718526,0.000187,2]
[426291095,1782249040000,-3676.89515425,0.000187,2]
[426291100,1782249040000,-163.66062104,0.00018812,2]
[426291099,1782249040000,-10203.95536531,0.000188,2]
[426291098,1782249040000,-689.80999983,0.00018765,2]
[426291097,1782249040000,-489.64372977,0.000187,2]
[426291101,1782249040000,-3676.89515425,0.000189,2]
[426291085,1782249040000,-3676.89515425,0.000185,2]
[426291096,1782249040000,-169.89889698,0.000187,2]
[426291093,1782249040000,-500.0,0.00018634,2]
[426291102,1782249040000,-10203.95536531,0.000189,2]
[426291103,1782249040000,-1538.77,0.000189,2]
[426291104,1782249040000,-249.0,0.00018999,2]
[426291107,1782249040000,-151.0,0.00019044,2]
[426291106,1782249040000,-151.0,0.00019044,2]
[426291112,1782249040000,-151.0,0.00019044,2]
[426291110,1782249040000,-151.0,0.00019044,2]
[426291109,1782249040000,-200.0,0.00019044,2]
[426291108,1782249040000,-151.0,0.00019044,2]
[426291105,1782249040000,-2944.87257894,0.00019,2]
[426291092,1782249040000,-2000.0,0.00018634,2]
[426291082,1782249040000,-974.8,0.0001841,2]
[426291111,1782249040000,-151.0,0.00019044,2]
[426291083,1782249040000,-1798.80895522,0.00018496,2]
[426291081,1782249040000,-154.37421804,0.000184,2]
[426291059,1782249040000,-170.3844487,0.000182,2]
[426291063,1782249040000,-10203.95536531,0.000182,2]
[426291058,1782249040000,-3676.89515425,0.000182,2]
[426291064,1782249040000,-489.64372977,0.000182,2]
[426291060,1782249040000,-205.98672192,0.000182,2]
[426291057,1782249040000,-1287.46718526,0.000182,2]
[426291066,1782249040000,-215.71060911,0.000182,2]
[426291065,1782249040000,-174.52983839,0.000182,2]
[426291074,1782249040000,-169.89889698,0.000184,2]
[426291070,1782249040000,-87762.54,0.00018356,2]
[426291075,1782249040000,-169.87728653,0.000184,2]
[426291071,1782249040000,-171.03081286,0.000184,2]
[426291056,1782249040000,-171.03081286,0.000182,2]
[426291072,1782249040000,-1287.46718526,0.000184,2]
[426291067,1782249040000,-169.85301842,0.000182,2]
[426291088,1782249040000,-1917.49,0.00018533,2]
[426291084,1782249040000,-1287.46718526,0.000185,2]
[426291079,1782249040000,-169.85301842,0.000184,2]
[426291080,1782249040000,-1793.86023933,0.000184,2]
[426291086,1782249040000,-169.89889698,0.000185,2]
[426291078,1782249040000,-174.52983839,0.000184,2]
[426291069,1782249040000,-1127.0,0.00018251,2]
[426291073,1782249040000,-3676.89515425,0.000184,2]
[426291076,1782249040000,-10203.95536531,0.000184,2]
[426291068,1782249040000,-1793.86023933,0.000182,2]
[426291077,1782249040000,-489.64372977,0.000184,2]
[426291149,1782249041000,-151.0,0.00019044,2]
[426291155,1782249041000,-151.0,0.00019044,2]
[426291151,1782249041000,-500.0,0.00019044,2]
[426291147,1782249041000,-151.0,0.00019044,2]
[426291142,1782249041000,-500.0,0.00019044,2]
[426291146,1782249041000,-151.0,0.00019044,2]
[426291143,1782249041000,-151.0,0.00019044,2]
[426291145,1782249041000,-500.0,0.00019044,2]
[426291144,1782249041000,-151.0,0.00019044,2]
[426291148,1782249041000,-500.0,0.00019044,2]
[426291150,1782249041000,-151.0,0.00019044,2]
[426291156,1782249041000,-500.0,0.00019044,2]
[426291153,1782249041000,-151.0,0.00019044,2]
[426291154,1782249041000,-500.0,0.00019044,2]
[426291157,1782249041000,-500.0,0.00019053,2]
[426291141,1782249041000,-151.0,0.00019044,2]
[426291158,1782249041000,-500.0,0.00019053,2]
[426291159,1782249041000,-3676.89515425,0.000191,2]
[426291160,1782249041000,-10203.95536531,0.000191,2]
[426291161,1782249041000,-1127.0,0.00019163,2]
[426291163,1782249041000,-3676.89515425,0.000193,2]
[426291165,1782249041000,-182.68,0.00019355,7]
[426291162,1782249041000,-250.0,0.00019178,8]
[426291164,1782249041000,-10203.95536531,0.000193,2]
[426291152,1782249041000,-151.0,0.00019044,2]
[426291138,1782249041000,-151.0,0.00019044,2]
[426291134,1782249041000,-151.0,0.00019044,2]
[426291139,1782249041000,-500.0,0.00019044,2]
[426291167,1782249041000,-3676.89515425,0.000195,2]
[426291113,1782249041000,-151.0,0.00019044,2]
[426291114,1782249041000,-151.0,0.00019044,2]
[426291119,1782249041000,-151.0,0.00019044,2]
[426291115,1782249041000,-151.0,0.00019044,2]
[426291116,1782249041000,-1865.36488656,0.00019044,2]
[426291118,1782249041000,-151.0,0.00019044,2]
[426291121,1782249041000,-151.0,0.00019044,2]
[426291122,1782249041000,-151.0,0.00019044,2]
[426291117,1782249041000,-500.0,0.00019044,2]
[426291123,1782249041000,-500.0,0.00019044,2]
[426291140,1782249041000,-151.0,0.00019044,2]
[426291120,1782249041000,-500.0,0.00019044,2]
[426291124,1782249041000,-151.0,0.00019044,2]
[426291128,1782249041000,-151.0,0.00019044,2]
[426291129,1782249041000,-500.0,0.00019044,2]
[426291133,1782249041000,-500.0,0.00019044,2]
[426291130,1782249041000,-151.0,0.00019044,2]
[426291127,1782249041000,-151.0,0.00019044,2]
[426291132,1782249041000,-151.0,0.00019044,2]
[426291131,1782249041000,-151.0,0.00019044,2]
[426291135,1782249041000,-151.0,0.00019044,2]
[426291136,1782249041000,-500.0,0.00019044,2]
[426291137,1782249041000,-151.0,0.00019044,2]
[426291125,1782249041000,-151.0,0.00019044,2]
[426291126,1782249041000,-500.0,0.00019044,2]
[426291166,1782249041000,-530.0,0.00019452,2]
[426291169,1782249041000,-151.0,0.00019592,2]
[426291201,1782249041000,-680.0,0.0002,2]
[426291197,1782249041000,-426.63485121,0.0002,2]
[426291202,1782249041000,-365.0,0.0002,2]
[426291204,1782249041000,-689.80999983,0.00020032,2]
[426291198,1782249041000,-40597.0,0.0002,2]
[426291203,1782249041000,-486.0,0.0002,2]
[426291205,1782249041000,-10203.95536531,0.000201,2]
[426291206,1782249041000,-596.81222315,0.00020121,2]
[426291207,1782249041000,-530.0,0.00020136,2]
[426291208,1782249041000,-151.0,0.0002014,2]
[426291213,1782249041000,-404.99652969,0.000202,2]
[426291200,1782249041000,-400.0,0.0002,2]
[426291212,1782249041000,-892.47314182,0.000202,2]
[426291210,1782249041000,-2005.9555727,0.0002014,2]
[426291215,1782249041000,-403.22,0.000202,14]
[426291216,1782249041000,-500.0,0.00020213,2]
[426291217,1782249041000,-500.0,0.00020213,2]
[426291214,1782249041000,-426.63485121,0.000202,2]
[426291218,1782249041000,-10203.95536531,0.000203,2]
[426291219,1782249041000,-1538.77,0.000203,2]
[426291221,1782249041000,-892.47314182,0.000204,2]
[426291220,1782249041000,-974.8,0.00020381,2]
[426291222,1782249041000,-404.99652969,0.000204,2]
[426291168,1782249041000,-10203.95536531,0.000195,2]
[426291211,1782249041000,-201.23757348,0.000202,2]
[426291199,1782249041000,-24466.07,0.0002,2]
[426291209,1782249041000,-200.0,0.0002014,2]
[426291195,1782249041000,-288.67407521,0.0002,2]
[426291170,1782249041000,-200.0,0.00019592,2]
[426291196,1782249041000,-404.99652969,0.0002,2]
[426291171,1782249041000,-1934.38338736,0.00019592,2]
[426291173,1782249041000,-500.0,0.00019624,2]
[426291174,1782249041000,-3676.89515425,0.000197,2]
[426291172,1782249041000,-500.0,0.00019624,2]
[426291177,1782249041000,-1272.71,0.000199,7]
[426291175,1782249041000,-10203.95536531,0.000197,2]
[426291176,1782249041000,-10203.95536531,0.000199,2]
[426291179,1782249041000,-2000.0,0.00019998,7]
[426291180,1782249041000,-1046.0,0.0002,2]
[426291181,1782249041000,-1385.0,0.0002,2]
[426291182,1782249041000,-168.0,0.0002,2]
[426291178,1782249041000,-1618.50888732,0.0001995,15]
[426291194,1782249041000,-892.47314182,0.0002,2]
[426291193,1782249041000,-15880.22,0.0002,2]
[426291184,1782249041000,-41228.89,0.0002,2]
[426291191,1782249041000,-519.0,0.0002,2]
[426291189,1782249041000,-3004.19797616,0.0002,7]
[426291188,1782249041000,-807.0,0.0002,2]
[426291187,1782249041000,-203.0,0.0002,2]
[426291186,1782249041000,-224.0,0.0002,2]
[426291192,1782249041000,-201.23757348,0.0002,2]
[426291183,1782249041000,-156.0,0.0002,2]
[426291185,1782249041000,-729.0,0.0002,2]